bitfinex-derivatives/quotes_SOLF0:USTF0_20250509
["timestamp","ask_amount","ask_price","bid_price","bid_amount"]
[1746779840116,1.0467353,169.38,169.31,2.0]
[1746779840516,17.362149,169.38,169.31,2.0]
[1746779840919,1.0467353,169.37,169.31,2.0]
[1746779841120,16.3154137,169.38,169.31,2.0]
[1746779841820,357.0,169.42,169.31,2.0]
[1746779842021,16.3154137,169.39,169.31,2.0]
[1746779842621,357.0,169.42,169.31,2.0]
[1746779842821,16.3154137,169.35,169.31,2.0]
[1746779843023,526.6354137,169.35,169.31,2.0]
[1746779844326,1.04698052,169.34,169.31,2.0]
[1746779844724,526.6354137,169.35,169.31,2.0]
[1746779845225,510.32,169.35,169.31,2.0]
[1746779846128,526.6354137,169.35,169.31,2.0]
[1746779846321,510.32,169.35,169.31,2.0]
[1746779848432,16.3154137,169.33,169.31,2.0]
[1746779849026,16.3154137,169.33,169.17,2.0077]
[1746779849327,528.05,169.35,169.17,2.0077]
[1746779849529,16.3154137,169.3,169.17,2.0077]
[1746779850024,1.18105586,169.34,169.17,18.3231137]
[1746779850231,1.18105586,169.34,169.18,3.872]
[1746779850832,1.99165331,169.51,169.33,48.82774911]
[1746779851030,1.99165331,169.51,169.34,510.46]
[1746779851531,81.70560496,169.51,169.48,16.27630823]
[1746779851732,81.70560496,169.51,169.44,16.27630823]
[1746779851926,81.70560496,169.51,169.44,22.17630823]
[1746779852126,81.70560496,169.51,169.48,16.27630823]
[1746779852436,75.59260496,169.51,169.45,5.98889579]
[1746779852627,75.59260496,169.51,169.35,511.64098612]
[1746779852932,75.59260496,169.51,169.4,16.27630823]
[1746779853132,75.59260496,169.51,169.44,16.27630823]
[1746779853333,137.04728627,169.53,169.45,2.13986611]
[1746779853533,21.79873807,169.53,169.45,2.13986611]
[1746779853833,173.56856022,169.55,169.5,16.27630823]
[1746779854030,173.56856022,169.55,169.54,16.27630823]
[1746779854733,1.9446,169.66,169.51,16.27630823]
[1746779856334,1.9446,169.66,169.46,510.22]
[1746779856536,1.9446,169.66,169.5,16.27630823]
[1746779856923,16.27630823,169.65,169.46,510.22]
[1746779858026,1.9446,169.66,169.46,510.22]
[1746779858439,16.27630823,169.65,169.46,510.22]
[1746779858633,1.9446,169.66,169.46,510.22]
[1746779858830,16.27630823,169.62,169.46,510.22]
[1746779859535,16.27630823,169.58,169.4,16.27630823]
[1746779859728,16.27630823,169.58,169.38,509.9]
[1746779859929,526.17630823,169.6,169.38,509.9]
[1746779860125,510.92710919,169.6,169.38,509.9]
[1746779860329,509.9,169.6,169.45,16.27630823]
[1746779860836,509.9,169.6,169.38,509.9]
[1746779861031,509.9,169.6,169.42,16.28908761]
[1746779861431,1.04546539,169.59,169.38,509.9]
[1746779862039,1.04546539,169.59,169.39,16.28908761]
[1746779862338,1.04546539,169.59,169.38,509.9]
[1746779862531,357.0,169.58,169.39,5.9025]
[1746779862735,357.0,169.58,169.38,509.9]
[1746779862736,16.30270104,169.55,169.38,509.9]
[1746779862936,3.8625,169.54,169.38,509.9]
[1746779863137,4.90796539,169.54,169.38,509.9]
[1746779863334,1.04546539,169.53,169.38,509.9]
[1746779863644,1.04546539,169.53,169.35,16.30270104]
[1746779863842,357.0,169.52,169.35,5.9037]
[1746779864041,358.04601788,169.52,169.33,16.30270104]
[1746779864235,5.901,169.44,169.36,5.9033]
[1746779864439,1.04601788,169.51,169.37,16.30270104]
[1746779864844,357.0,169.52,169.37,16.30270104]
[1746779865041,357.0,169.52,169.35,16.30270104]
[1746779865243,5.9015,169.43,169.36,5.9034]
[1746779865444,357.0,169.52,169.35,16.30270104]
[1746779865638,1.04595501,169.51,169.35,16.30270104]
[1746779865844,1.04586916,169.53,169.37,5.9033]
[1746779866143,1.04586916,169.53,169.35,16.30270104]
[1746779866344,5.9004,169.46,169.4,5.9021]
[1746779866545,1.04586916,169.53,169.35,16.30270104]
[1746779866742,20.16520104,169.54,169.35,16.30270104]
[1746779866938,5.901,169.44,169.38,5.9029]
[1746779867144,20.16520104,169.54,169.35,16.30270104]
[1746779867340,5.8991,169.49,169.43,5.901]
[1746779867943,3.8625,169.54,169.43,16.30270104]
[1746779868242,3.8625,169.54,169.36,16.30270104]
[1746779869452,1.04585247,169.53,169.36,16.30270104]
[1746779869652,5.901,169.44,169.38,5.9028]
[1746779869946,3.8625,169.54,169.36,16.30270104]
[1746779870146,3.8625,169.54,169.4,5.9021]
[1746779870349,3.8625,169.54,169.4,16.30270104]
[1746779870546,3.8625,169.54,169.36,16.30270104]
[1746779870743,3.8625,169.54,169.39,5.9025]
[1746779870947,3.8625,169.54,169.36,16.30270104]
[1746779871147,3.8625,169.54,169.42,16.30270104]
[1746779871342,3.8625,169.54,169.43,5.9011]
[1746779871648,3.8625,169.54,169.42,16.30270104]
[1746779871854,3.8625,169.54,169.43,5.9011]
[1746779872040,3.8625,169.54,169.42,16.30270104]
[1746779872550,3.8625,169.54,169.42,22.20400104]
[1746779872851,3.8625,169.54,169.36,17.30270104]
[1746779873052,3.8625,169.54,169.4,5.9022]
[1746779873351,3.8625,169.54,169.36,17.30270104]
[1746779874047,3.8625,169.54,169.37,5.9032]
[1746779874243,1.0458942,169.53,169.36,17.30270104]
[1746779874448,1.0458942,169.53,169.38,5.9027]
[1746779874649,1.0458942,169.53,169.36,17.30270104]
[1746779874947,5.8995,169.48,169.38,5.9029]
[1746779875152,358.0458942,169.53,169.36,17.30270104]
[1746779875353,357.0,169.53,169.36,1.0]
[1746779875652,5.9018,169.42,169.37,5.9033]
[1746779875847,16.30270104,169.51,169.36,1.0]
[1746779876350,16.30270104,169.51,169.36,6.9036]
[1746779876546,357.0,169.5,169.36,1.0]
[1746779876750,16.30270104,169.47,169.36,1.0]
[1746779876950,1.891,169.46,169.36,1.0]
[1746779877256,17.3486872,169.45,169.29,1.8669]
[1746779877448,358.8971,169.44,169.29,1.8669]
[1746779877752,5.9053,169.32,169.26,515.9069]
[1746779877956,16.30270104,169.41,169.26,515.9069]
[1746779878246,5.906,169.3,169.26,510.0]
[1746779878449,16.30270104,169.37,169.23,3.7431]
[1746779878652,2.0002,169.36,169.22,26.33711697]
[1746779878955,5.9067,169.28,169.22,26.33711697]
[1746779879149,2.0002,169.36,169.22,26.33711697]
[1746779879350,2.0002,169.36,169.19,16.30270104]
[1746779879551,1.9344,169.35,169.19,16.30270104]
[1746779879753,2.98131161,169.35,169.18,3.7431]
[1746779879952,5.9083,169.23,169.18,9.6529]
[1746779880151,16.30270104,169.33,169.18,3.7431]
[1746779880450,16.30270104,169.34,169.18,3.7431]
[1746779880752,1.04713554,169.33,169.18,3.7431]
[1746779880954,16.30270104,169.34,169.18,3.7431]
[1746779881159,1.04714302,169.33,169.18,3.7431]
[1746779881456,1.04714302,169.34,169.18,3.7431]
[1746779881757,16.30270104,169.29,169.15,166.8490214]
[1746779882049,16.30270104,169.25,169.1,1.9444]
[1746779882251,3.8923,169.24,169.1,1.9444]
[1746779882451,3.8923,169.24,169.1,7.857]
[1746779882647,3.8923,169.24,169.1,1.9444]
[1746779882845,5.9103,169.17,169.11,5.912]
[1746779883153,3.8923,169.24,169.1,1.9444]
[1746779884860,18.19780104,169.28,169.11,16.30270104]
[1746779885048,510.28,169.29,169.11,16.30270104]
[1746779885253,510.28,169.29,169.15,16.30270104]
[1746779885454,510.28,169.29,169.12,16.30270104]
[1746779885657,5.9088,169.22,169.16,5.9106]
[1746779885858,510.28,169.29,169.12,16.30270104]
[1746779886157,511.46140469,169.29,169.13,5.9113]
[1746779886356,511.46140469,169.29,169.1,1.9444]
[1746779886555,16.30270104,169.26,169.1,1.9444]
[1746779887266,5.9117,169.13,169.06,1.0]
[1746779887457,358.04776144,169.25,169.06,1.0]
[1746779887760,16.30270104,169.22,169.07,5.9137]
[1746779887962,4.96599572,169.21,169.07,5.9137]
[1746779888159,16.30270104,169.17,169.06,1.0]
[1746779888659,16.30270104,169.18,169.06,1.0]
[1746779889156,16.30270104,169.16,169.06,1.0]
[1746779889360,5.9138,169.07,169.06,1.0]
[1746779890354,16.30270104,169.12,168.96,1.856]
[1746779890559,360.8985,169.11,168.97,5.917]
[1746779890858,5.9151,169.04,168.97,5.917]
[1746779891257,16.30270104,169.1,168.94,6.53892592]
[1746779891458,16.30270104,169.06,168.94,6.53892592]
[1746779891652,16.30270104,169.02,168.94,6.53892592]
[1746779891848,1.9803,169.01,168.94,0.41392592]
[1746779892252,16.30270104,168.98,168.92,43.30407885]
[1746779892455,16.30270104,168.98,168.87,167.96438644]
[1746779892456,16.30270104,168.93,168.78,1.8956]
[1746779892854,16.30270104,168.96,168.77,6.56503133]
[1746779892855,16.30270104,168.88,168.77,6.56503133]
[1746779893060,16.30270104,168.96,168.77,6.56503133]
[1746779893256,16.30270104,168.9,168.77,6.56503133]
[1746779894059,16.30270104,168.96,168.77,6.56503133]
[1746779894258,16.30270104,168.91,168.77,6.56503133]
[1746779894955,16.30270104,168.91,168.77,12.48923133]
[1746779895258,16.30270104,168.91,168.77,6.56503133]
[1746779896061,16.30270104,168.88,168.77,6.56503133]
[1746779896262,511.16,168.87,168.77,6.56503133]
[1746779896458,511.16,168.87,168.72,1.8956]
[1746779896659,511.16,168.87,168.68,6.23502655]
[1746779896959,16.30270104,168.84,168.68,6.23502655]
[1746779897559,18.16040104,168.83,168.68,6.23502655]
[1746779897756,1.8577,168.83,168.68,6.23502655]
[1746779898153,1.8577,168.83,168.68,22.53772759]
[1746779898354,1.8577,168.83,168.68,6.23502655]
[1746779898564,1.8577,168.83,168.7,5.9267]
[1746779898764,1.8577,168.83,168.68,6.23502655]
[1746779899661,16.30270104,168.81,168.68,6.23502655]
[1746779900056,5.9271,168.69,168.68,6.23502655]
[1746779900260,16.30270104,168.73,168.57,5.7932]
[1746779900462,5.9285,168.66,168.57,5.7932]
[1746779900656,16.30270104,168.73,168.58,5.9309]
[1746779900862,16.30270104,168.73,168.57,5.7932]
[1746779901063,5.9293,168.63,168.57,5.7932]
[1746779901462,16.30270104,168.73,168.57,5.7932]
[1746779901660,534.0,168.81,168.57,22.09590104]
[1746779901865,373.30270104,168.8,168.61,16.30270104]
[1746779902066,5.9247,168.76,168.65,16.30270104]
[1746779902368,5.9247,168.76,168.7,5.9267]
[1746779902568,511.66,168.83,168.58,511.66]
[1746779902764,511.66,168.83,168.61,5.9296]
[1746779902765,16.30270104,168.8,168.61,5.9296]
[1746779902964,16.30270104,168.76,168.57,5.7932]
[1746779903161,5.9282,168.66,168.57,5.7932]
[1746779903365,511.86,168.73,168.57,5.7932]
[1746779903561,5.9288,168.65,168.57,5.7932]
[1746779903761,511.86,168.73,168.57,5.7932]
[1746779903963,511.86,168.73,168.58,16.30270104]
[1746779904264,511.86,168.73,168.62,16.30270104]
[1746779904769,511.86,168.81,168.66,16.30270104]
[1746779905065,511.86,168.81,168.67,1.9926]
[1746779905259,511.86,168.81,168.68,1.9843]
[1746779905464,511.86,168.81,168.69,16.30270104]
[1746779905666,357.0,168.87,168.69,1.9518]
[1746779906064,357.0,168.87,168.71,16.30270104]
[1746779906462,357.0,168.87,168.72,16.30270104]
[1746779906769,16.30270104,168.83,168.69,1.9518]
[1746779906966,357.0,168.82,168.68,1.9843]
[1746779907168,511.86,168.89,168.68,1.9843]
[1746779907362,16.30270104,168.78,168.6,2.007]
[1746779907562,511.96,168.77,168.61,9.8656]
[1746779907766,16.30270104,168.76,168.61,3.9358]
[1746779908071,357.0,168.75,168.61,3.9358]
[1746779908464,357.0,168.75,168.69,5.927]
[1746779908667,357.0,168.84,168.64,16.30270104]
[1746779908867,357.0,168.83,168.64,16.30270104]
[1746779909165,357.0,168.83,168.61,515.8958]
[1746779909371,511.96,168.85,168.61,2.0133]
[1746779909572,511.96,168.85,168.64,5.9288]
[1746779909770,511.96,168.85,168.62,2.0306]
[1746779910075,16.30270104,168.79,168.62,7.9598]
[1746779910370,16.30270104,168.79,168.62,2.0306]
[1746779910571,1.03181427,168.84,168.61,2.0133]
[1746779910875,2.1419,168.78,168.61,2.0133]
[1746779911078,16.30270104,168.74,168.61,2.0133]
[1746779911474,16.30270104,168.74,168.55,16.30270104]
[1746779911674,512.1,168.75,168.57,5.9313]
[1746779911874,16.30270104,168.73,168.56,1.9826]
[1746779912076,512.1,168.75,168.56,1.9826]
[1746779912471,16.30270104,168.7,168.56,1.9826]
[1746779912677,16.30270104,168.66,168.28,11.8824]
[1746779912879,16.30270104,168.62,168.43,1.8644]
[1746779913075,512.22,168.62,168.43,1.8644]
[1746779913477,512.22,168.62,168.36,512.22]
[1746779913781,512.22,168.62,168.37,1.8644]
[1746779913972,512.22,168.62,168.39,5.9375]
[1746779914278,512.22,168.62,168.37,1.8644]
[1746779914479,5.9357,168.45,168.37,1.8644]
[1746779914779,16.30270104,168.56,168.37,1.8644]
[1746779915076,512.22,168.62,168.41,16.30270104]
[1746779915278,512.22,168.62,168.42,2.002]
[1746779915478,5.9322,168.55,168.46,5.9352]
[1746779915679,512.22,168.62,168.43,1.9708]
[1746779916078,1.05194374,168.61,168.37,1.8644]
[1746779916376,19.16189542,168.55,168.38,1.9708]
[1746779916576,5.9366,168.42,168.32,5.9398]
[1746779916881,512.48,168.49,168.29,1.883]
[1746779917083,5.9366,168.42,168.34,5.9392]
[1746779917382,1.05276476,168.48,168.29,1.883]
[1746779917579,512.48,168.49,168.29,1.883]
[1746779918074,512.48,168.49,168.33,5.9396]
[1746779918280,19.16189542,168.48,168.29,1.883]
[1746779918475,20.21462653,168.48,168.29,1.883]
[1746779918781,5.9384,168.37,168.29,7.8241]
[1746779918977,1.05273111,168.47,168.29,1.883]
[1746779919282,512.48,168.49,168.29,1.883]
[1746779919577,5.9366,168.42,168.35,5.9391]
[1746779919775,512.48,168.49,168.29,1.883]
[1746779919976,531.64189542,168.49,168.29,1.883]
[1746779920176,1.23856277,168.48,168.23,1.9208]
[1746779920477,1.05286277,168.47,168.24,3.9291]
[1746779920677,5.9369,168.42,168.35,5.9391]
[1746779920879,512.48,168.49,168.26,19.16189542]
[1746779921181,5.9344,168.49,168.41,5.9369]
[1746779921382,532.02189542,168.58,168.31,19.16189542]
[1746779921578,2.23883118,168.57,168.31,19.16189542]
[1746779921780,5.9345,168.48,168.31,19.16189542]
[1746779921976,1.05238045,168.56,168.31,19.16189542]
[1746779922172,5.9354,168.46,168.27,512.86]
[1746779922481,19.16189542,168.52,168.27,512.86]
[1746779922678,1.05248977,168.51,168.27,512.86]
[1746779922879,20.34834615,168.57,168.31,19.16189542]
[1746779923074,1.05258125,168.56,168.27,512.86]
[1746779923277,5.9371,168.41,168.34,5.9394]
[1746779923476,1.05258125,168.56,168.34,5.9394]
[1746779923477,1.05258125,168.56,168.35,1.9874]
[1746779923680,19.16189542,168.53,168.25,512.86]
[1746779923882,19.16189542,168.48,168.28,1.9587]
[1746779924185,19.16189542,168.46,168.28,1.9587]
[1746779924374,513.99258125,168.47,168.28,1.9587]
[1746779924580,1.05258125,168.45,168.28,1.9587]
[1746779924778,1.951,168.52,168.28,1.9587]
[1746779924977,1.05267334,168.51,168.28,1.9587]
[1746779925783,19.16189542,168.48,168.28,1.9587]
[1746779925983,1.24337334,168.47,168.28,1.9587]
[1746779926181,1.05267334,168.46,168.23,1.9208]
[1746779926378,5.942,168.27,168.19,3.8514]
[1746779926785,19.16189542,168.38,168.19,3.8514]
[1746779926986,2.0296,168.37,168.19,3.8514]
[1746779927292,3.08335602,168.37,168.19,1.864]
[1746779927489,1.05375602,168.36,168.2,2.0396]
[1746779927782,19.16189542,168.33,168.16,1.8501]
[1746779927988,19.16189542,168.33,168.08,2.0396]
[1746779928291,1.05375602,168.32,168.08,3.8862]
[1746779928988,1.03497502,168.31,168.08,3.8862]
[1746779929187,19.16189542,168.28,168.08,3.8862]
[1746779929485,1.03497502,168.31,168.07,5.9489]
[1746779929486,1.18856599,168.27,168.07,5.9489]
[1746779929686,19.16189542,168.23,168.0,1.8466]
[1746779929876,513.32,168.22,168.0,1.8466]
[1746779930083,19.16189542,168.2,168.0,1.8466]
[1746779930394,1.05375602,168.19,168.0,1.8466]
[1746779930685,513.32,168.22,168.0,1.8466]
[1746779931492,1.05437836,168.21,168.0,1.8466]
[1746779931686,513.32,168.22,168.0,1.8466]
[1746779931989,1.18856599,168.27,168.0,1.8466]
[1746779932190,1.05419542,168.26,168.04,19.16189542]
[1746779932390,1.05419542,168.26,168.05,515.2354]
[1746779932592,1.18856599,168.27,168.05,515.2354]
[1746779932891,5.9448,168.19,168.12,5.9469]
[1746779933089,1.05408664,168.26,168.05,515.2354]
[1746779933286,5.9449,168.19,168.05,515.2354]
[1746779933587,1.05408664,168.26,168.05,515.2354]
[1746779933790,1.18856599,168.27,168.05,515.2354]
[1746779934190,1.18856599,168.27,167.95,519.73502655]
[1746779934487,1.18856599,168.27,168.12,1.0]
[1746779934687,1.18856599,168.27,168.13,5.81]
[1746779934688,1.05408326,168.26,168.13,5.81]
[1746779934888,1.18856599,168.27,168.13,5.81]
[1746779936691,5.9437,168.22,168.13,5.81]
[1746779936893,1.18856599,168.27,168.13,5.81]
[1746779937291,5.9437,168.22,168.15,5.9458]
[1746779937496,1.18856599,168.27,168.13,5.81]
[1746779937691,1.18856599,168.27,168.13,22.34468636]
[1746779938195,513.58,168.38,168.18,16.53468636]
[1746779938392,513.58,168.38,168.18,513.58]
[1746779938596,513.58,168.38,168.22,16.53468636]
[1746779938895,513.58,168.38,168.23,3.9823]
[1746779939097,513.58,168.38,168.24,1.851]
[1746779939497,5.9398,168.33,168.27,5.9416]
[1746779939687,513.58,168.38,168.24,1.851]
[1746779939892,2.0786,168.46,168.24,1.851]
[1746779939893,515.6786,168.46,168.24,1.851]
[1746779940088,891.0,168.45,168.09,525.4961]
[1746779940401,5.9416,168.28,168.21,5.9437]
[1746779940698,513.6,168.35,168.19,1.9996]
[1746779940890,513.6,168.34,168.19,7.9443]
[1746779941092,513.6,168.34,168.19,1.9996]
[1746779941700,1.18736642,168.44,168.2,532.85127373]
[1746779942001,19.21127373,168.42,168.2,513.64]
[1746779942195,514.69320144,168.41,168.2,513.64]
[1746779942597,513.64,168.41,168.2,513.64]
[1746779943201,1.18736642,168.44,168.23,19.21127373]
[1746779943396,1.18736642,168.44,168.24,3.8678]
[1746779943598,1.18736642,168.44,168.39,5.9375]
[1746779943796,1.18736642,168.44,168.25,62.0]
[1746779944503,1.18736642,168.44,168.28,19.21127373]
[1746779944697,513.64,168.49,168.29,1.9319]
[1746779944890,514.82701406,168.49,168.29,1.9319]
[1746779945102,5.9378,168.39,168.32,5.9399]
[1746779945290,5.9378,168.39,168.29,1.9319]
[1746779945491,1.18701406,168.49,168.29,1.9319]
[1746779945694,1.18701406,168.49,168.3,513.52]
[1746779946007,1.05268388,168.48,168.3,513.52]
[1746779946695,19.21127373,168.46,168.29,1.9319]
[1746779946895,513.52,168.47,168.29,1.9319]
[1746779947600,19.21127373,168.46,168.29,1.9319]
[1746779947801,11.8713,168.45,168.29,1.9319]
[1746779947995,19.21127373,168.41,168.29,1.9319]
[1746779948189,19.21127373,168.41,168.24,3.8678]
[1746779948694,19.21127373,168.36,168.24,3.8678]
[1746779948998,19.21127373,168.36,168.24,1.9864]
[1746779949192,357.0,168.41,168.24,1.9864]
[1746779949393,357.0,168.41,168.26,5.9422]
[1746779949597,357.0,168.41,168.24,3.9922]
[1746779949895,2.0997,168.45,168.24,3.9922]
[1746779950088,2.0997,168.45,168.24,517.4522]
[1746779950295,5.9408,168.31,168.24,3.9922]
[1746779950590,357.0,168.41,168.24,3.9922]
[1746779950799,5.9387,168.36,168.24,3.9922]
[1746779951002,2.0997,168.45,168.24,3.9922]
[1746779951403,5.9377,168.39,168.3,5.9408]
[1746779951606,2.0997,168.45,168.24,3.9922]
[1746779952006,5.9387,168.37,168.24,3.9922]
[1746779952300,358.05293821,168.44,168.24,3.9922]
[1746779952496,5.938,168.39,168.24,3.9922]
[1746779952705,357.0,168.44,168.24,517.4322]
[1746779952908,513.52,168.47,168.38,5.9377]
[1746779953094,513.52,168.47,168.25,2.17567862]
[1746779953406,5.9363,168.43,168.37,5.9382]
[1746779953704,513.52,168.47,168.27,19.21127373]
[1746779953897,81.31554665,168.49,168.41,5.9369]
[1746779953898,5.9353,168.46,168.41,5.9369]
[1746779954100,1.18701406,168.49,168.28,2.18075166]
[1746779954598,1.18701406,168.49,168.29,2.18075166]
[1746779954900,1.18701406,168.49,168.28,2.18075166]
[1746779955105,5.9363,168.43,168.29,2.18075166]
[1746779955399,1.18701406,168.49,168.28,2.18075166]
[1746779955609,5.9377,168.39,168.34,5.9393]
[1746779955795,1.18701406,168.49,168.29,2.19367686]
[1746779956093,5.9359,168.44,168.3,2.19542973]
[1746779956293,1.18701406,168.49,168.31,2.19542973]
[1746779956494,1.18701406,168.49,168.34,5.9394]
[1746779956698,1.18701406,168.49,168.32,1.8637]
[1746779957104,1.18701406,168.49,168.33,2.20615961]
[1746779957299,1.18701406,168.49,168.34,515.54615961]
[1746779957503,1.18701406,168.49,168.35,6.02405961]
[1746779957703,1.8975,168.52,168.36,2.20615961]
[1746779957903,1.8975,168.52,168.36,2.2107556]
[1746779958206,1.8975,168.52,168.35,3.8179]
[1746779958406,1.8975,168.52,168.36,2.21206987]
[1746779958705,5.9362,168.44,168.36,2.21251799]
[1746779959007,1.8975,168.52,168.35,6.03041799]
[1746779959209,5.9385,168.37,168.35,1.8492]
[1746779959409,357.0,168.51,168.32,1.8637]
[1746779959712,5.9385,168.37,168.32,1.8637]
[1746779960009,358.05282465,168.5,168.32,1.8637]
[1746779960215,5.9388,168.36,168.32,1.8637]
[1746779960406,357.0,168.49,168.26,515.2241]
[1746779960407,19.21127373,168.47,168.26,515.2241]
[1746779960605,358.05295795,168.49,168.24,2.0197]
[1746779960606,513.26,168.45,168.24,2.0197]
[1746779960805,19.21127373,168.43,168.24,2.0197]
[1746779961209,357.0,168.42,168.24,2.0197]
[1746779961401,19.21127373,168.38,168.22,223.83226179]
[1746779961605,2.99252972,168.37,168.17,1.9498]
[1746779961805,5.9432,168.24,168.18,5.9448]
[1746779962012,5.9432,168.24,168.17,1.9498]
[1746779962209,19.21127373,168.33,168.17,1.9498]
[1746779962402,5.9445,168.2,168.17,1.9498]
[1746779962608,5.9445,168.2,168.16,2.0197]
[1746779962918,5.9461,168.16,168.1,5.9478]
[1746779963215,19.21127373,168.23,168.08,1.9498]
[1746779963602,5.9468,168.13,168.05,2.0454]
[1746779964013,19.21127373,168.18,168.02,1.8576]
[1746779964403,36.94127373,168.18,168.02,1.8576]
[1746779964605,5.9486,168.08,168.02,1.8576]
[1746779964811,36.94127373,168.18,168.02,1.8576]
[1746779965014,19.21127373,168.18,168.02,1.8576]
[1746779965319,0.1935,168.21,168.02,1.8576]
[1746779965616,19.21127373,168.18,167.95,6.23502655]
[1746779965807,19.21127373,168.18,167.96,8.03628487]
[1746779966006,17.73,168.17,167.96,8.03628487]
[1746779966213,1.0547031,168.16,167.96,8.03628487]
[1746779966416,531.37,168.15,167.96,5.8211]
[1746779966612,1.0547031,168.14,167.96,5.8211]
[1746779967015,2.09066404,168.14,167.96,5.8211]
[1746779967324,1.0547031,168.14,167.96,5.8211]
[1746779967513,1.0547031,168.13,167.96,5.8211]
[1746779968321,1.0547031,168.14,167.96,5.8211]
[1746779968517,1.0547031,168.12,167.96,5.8211]
[1746779968721,1.0547031,168.12,167.96,11.7739]
[1746779969013,1.0547031,168.12,167.95,6.23502655]
[1746779969014,19.21127373,168.12,167.95,6.23502655]
[1746779969222,5.9527,167.97,167.95,6.23502655]
[1746779969715,5.9515,168.0,167.95,6.23502655]
[1746779969920,513.88,168.03,167.95,6.23502655]
[1746779970316,5.9511,168.01,167.95,6.23502655]
[1746779970510,2.0247,168.1,167.95,6.23502655]
[1746779970714,1.18983877,168.09,167.95,6.23502655]
[1746779970913,1.18983877,168.09,167.96,1.9035]
[1746779971118,1.18983877,168.09,167.97,1.8808]
[1746779971316,1.18983877,168.09,168.06,5.9493]
[1746779971621,513.88,168.19,168.01,513.88]
[1746779971821,515.06913133,168.19,168.01,513.88]
[1746779972121,5.9469,168.13,168.01,513.88]
[1746779972316,515.06913133,168.19,168.01,513.88]
[1746779972522,515.06913133,168.19,168.03,5.9503]
[1746779972818,1.05475816,168.18,168.03,5.9503]
[1746779973022,1.05475816,168.18,167.97,1.8808]
[1746779973620,3.28955816,168.18,167.97,1.8808]
[1746779973821,1.05475816,168.18,167.97,1.8808]
[1746779974118,5.9483,168.09,168.03,5.9504]
[1746779974317,5.9483,168.09,167.97,1.8808]
[1746779974512,515.06913133,168.19,167.97,1.8808]
[1746779974913,2.09061494,168.18,167.97,1.8808]
[1746779975115,5.9502,168.04,167.97,1.8808]
[1746779975322,19.21127373,168.16,167.97,1.8808]
[1746779975825,5.949,168.07,167.97,1.8808]
[1746779976021,1.054839,168.15,167.97,1.8808]
[1746779976221,1.2074,168.14,167.97,1.8808]
[1746779976422,1.05491246,168.13,167.97,1.8808]
[1746779977223,1.05491246,168.13,167.98,5.9518]
[1746779977421,1.05491246,168.13,167.97,1.8808]
[1746779977722,5.9501,168.04,167.97,1.8808]
[1746779978231,17.73,168.12,167.97,1.8808]
[1746779978529,0.1976,168.12,167.97,1.8808]
[1746779978928,1.05504511,168.11,167.97,1.8808]
[1746779979125,0.1976,168.12,167.97,1.8808]
[1746779979431,1.9743,168.13,168.0,5.9514]
[1746779979632,1.2074,168.14,167.97,1.8808]
[1746779979833,19.21127373,168.13,167.97,1.8808]
[1746779980029,1.18962645,168.12,167.97,1.8808]
[1746779980334,19.97471965,168.12,167.95,6.23502655]
[1746779980634,1.0550932,168.11,167.95,6.23502655]
[1746779981233,18.91962645,168.12,167.95,6.23502655]
[1746779981431,5.9518,168.0,167.95,6.23502655]
[1746779981631,514.22,168.07,167.95,6.23502655]
[1746779982632,1.18962645,168.12,167.95,6.23502655]
[1746779982936,1.18962645,168.12,167.96,19.21127373]
[1746779983130,1.18962645,168.12,168.01,19.21127373]
[1746779983327,515.4255,168.23,168.02,3.9426]
[1746779983531,5.9441,168.21,168.02,3.9426]
[1746779983731,5.9441,168.21,168.03,1.981]
[1746779984030,5.9438,168.22,168.06,19.21127373]
[1746779984228,81.33403259,168.27,168.06,19.21127373]
[1746779984734,80.12853259,168.27,168.11,19.21127373]